Cogmind - Beta 13 @@@ ROGUE MODE // 2024.06.02 @ 20:24:57 Player: kikul Result: Destroyed by H-55 Commando with Gauss Rifle Performance ------------- Evolutions (2) 1000 Regions Visited (5) 1000 Robots Destroyed (37) 185 Value Destroyed (996) 996 Prototype IDs (0) 0 Alien Tech Used (0) 0 Bonus (0) 0 TOTAL SCORE: 3181 Bonus ------- None Cogmind --------- Core Integrity 0/550 Matter 285/300 Energy 300/300 System Corruption 0% Temperature Cool (9) Movement Hovering (60) Location -8/Materials Parts ------- > --- POWER (2) -------- (None) > --- PROPULSION (2) --- Airjet > --- UTILITY (3) ------ Compact Battery > --- WEAPON (4) ------- (None) > --- INVENTORY (5) ---- (None) Peak State ------------ > --- POWER ------------ Light Ion Engine Light Ion Engine > --- PROPULSION ------- Aluminum Leg Aluminum Leg > --- UTILITY ---------- Heat Sink Small Storage Unit Compact Battery > --- WEAPON ----------- Shock Rifle Shock Rifle Shock Rifle Shock Rifle > --- INVENTORY -------- Aluminum Leg Aluminum Leg Compact Battery Structural Scanner Improved Terrain Scan Processor Light Armor Plating [Rating: 22] Favorites ----------- Power Light Ion Engine Engine Light Ion Engine Propulsion Aluminum Leg Leg Aluminum Leg Wheel Wheel Hover Unit Airjet Utility Small Storage Unit Device Improved Terrain Scanner Storage Small Storage Unit Protection Light Armor Plating Weapon Shock Rifle Energy Gun Shock Rifle Ballistic Gun Light Assault Rifle Special Weapon Mining Laser Build | -11 -10 -10 -9 -9 -8 ------- Run | Yrd Mat Min Mat Min Mat Slots Evolved 4 | . . . 2 . 2 Power 1 | . . . . . 1 Propulsion . | . . . . . . Utility 1 | . . . . . 1 Weapon 2 | . . . 2 . . Parts Attached 41 | 8 4 6 12 . 11 Power 8 | 1 . 1 3 . 3 Engine 8 | 1 . 1 3 . 3 Core . | . . . . . . Reactor . | . . . . . . Propulsion 12 | 2 3 2 2 . 3 Treads . | . . . . . . Leg 8 | 2 . 2 2 . 2 Wheel 3 | . 3 . . . . Hover 1 | . . . . . 1 Flight . | . . . . . . Utility 7 | 2 . . 1 . 4 Device 3 | 1 . . . . 2 Storage 3 | 1 . . 1 . 1 Processor . | . . . . . . Hackware . | . . . . . . Protection 1 | . . . . . 1 Artifact . | . . . . . . Weapon 14 | 3 1 3 6 . 1 Energy Gun 5 | . . . 4 . 1 Energy Cannon . | . . . . . . Ballistic Gun 7 | 2 1 2 2 . . Ballistic Cannon . | . . . . . . Launcher . | . . . . . . Special Weapon 2 | 1 . 1 . . . Impact Weapon . | . . . . . . Slashing Weapon . | . . . . . . Piercing Weapon . | . . . . . . Special Melee Weapon . | . . . . . . Unidentified Prototypes . | . . . . . . Parts Lost 23 | . . 4 2 . 17 Power 4 | . . 1 . . 3 Propulsion 5 | . . 1 . . 4 Utility 5 | . . . . . 5 Weapon 9 | . . 2 2 . 5 Highest Loss Streak 16 | . . 3 1 . 16 To Critical Strikes . | . . . . . . Average Slot Usage (%) 89 | . 100 90 95 100 73 Engine 11 | . 14 9 11 11 13 Leg 20 | . 21 25 21 22 13 Device 7 | . 14 14 2 . 6 Storage 16 | . 14 14 19 22 14 Energy Gun 17 | . . . 19 44 23 Ballistic Gun 13 | . 23 22 20 . . Naked Turns 5 | . . . . . 5 Heaviest Build 25 | 11 12 13 21 21 25 Greatest Support 27 | 20 26 20 20 20 27 Greatest Overweight (x) 4 | 3 . 3 1 1 4 Average Overweight (x) . | . . . . 1 . Largest Inventory Capacity 8 | 8 8 8 8 8 8 Average Capacity 7 | 7 8 8 8 8 7 Most Carried 8 | 6 8 8 8 8 8 Average Carried 6 | 4 6 7 7 8 5 Final Capacity 8 | 8 8 8 8 8 5 Final Carried 8 | 5 8 8 8 8 . Class Distribution -------------------- 43% | Mutant 26% | Scavenger-Gunner 18% | Gunner 8% | Scavenger-Skirmisher 3% | Scavenger-Mutant Dominant Class ---------------- Mutant | -10/Materials Mutant | -10/Mines Scavenger-Gunner | -9/Materials Gunner | -9/Mines Scavenger-Gunner | -8/Materials Resources | -11 -10 -10 -9 -9 -8 ----------- Run | Yrd Mat Min Mat Min Mat Matter Collected 830 | 263 42 190 316 . 19 Remotely . | . . . . . . Salvage Created 1168 | 45 42 170 616 182 113 Parts 79 | 7 5 12 39 11 5 Haulers Intercepted . | . . . . . . Recyclers Shooed 2 | 1 . . 1 . . Parts Field Recycled . | . . . . . . Retrieved Matter . | . . . . . . Parts Self-Destructed . | . . . . . . Prevented . | . . . . . . Kills | -11 -10 -10 -9 -9 -8 ------- Run | Yrd Mat Min Mat Min Mat Combat Hostiles Destroyed 29 | . 3 4 14 6 2 Guns 24 | . 3 4 14 1 2 AOE 5 | . . . . 5 . Classes Destroyed 7 | 2 1 1 3 . . Worker 4 | 1 . 2 . 1 . Builder 1 | . . . 1 . . Tunneler 1 | 1 . . . . . Watcher 2 | . . . 2 . . Swarmer 9 | . 3 2 4 . . Grunt 17 | . . 2 8 6 1 Sentry 3 | . . . 2 . 1 Best Kill Streak 9 | 1 3 2 9 4 2 Combat Bots Only 6 | . 3 2 6 3 2 Max Kills in Single Turn 4 | 1 1 1 2 4 1 Gunslinging 1 | . . . 1 . . Exploded 3 | . . . . 3 . Melee . | . . . . . . Uniques/NPCs Destroyed . | . . . . . . Combat | -11 -10 -10 -9 -9 -8 -------- Run | Yrd Mat Min Mat Min Mat Hostile Shots Fired 244 | . 14 24 56 . 150 Missed 68 | . 7 5 10 . 46 Damage Taken 2736 | . 57 570 512 . 1597 Core 789 | . 7 112 109 . 561 Absorbed by Shields . | . . . . . . Core Remaining (%) 74 | 100 . 52 . 72 . Volleys Fired 94 | 16 6 26 36 2 8 Largest 4 | 2 2 2 4 4 4 Hottest 200 | 120 40 120 200 200 200 Shots Fired 245 | 22 12 50 130 8 23 Gun 233 | 16 12 44 130 8 23 Cannon . | . . . . . . Launcher . | . . . . . . Special 12 | 6 . 6 . . . Kinetic 179 | 16 12 44 107 . . Thermal 12 | 6 . 6 . . . Explosive . | . . . . . . Electromagnetic 54 | . . . 23 8 23 Robot Hit Streak 7 | 5 2 4 7 2 4 Robot Miss Streak 4 | 3 3 3 4 2 3 Penetration Max . | . . . . . . Secondary Targets 6 | . 1 . 5 . . Max Gunslinging Chain 1 | . 1 . 1 . . Shots Hit Robots 132 | 12 5 24 73 4 14 Core Hits 61 | 4 3 9 31 8 6 Critical Kills . | . . . . . . Critical Parts Destroyed 2 | . . . 2 . . Critical Strikes 3 | . . . 2 1 . Destroy 2 | . . . 2 . . Corrupt 1 | . . . . 1 . Melee Attacks . | . . . . . . Impact . | . . . . . . Slashing . | . . . . . . Piercing . | . . . . . . Sneak Attacks . | . . . . . . Combat Hostiles . | . . . . . . Follow-up Attacks . | . . . . . . Damage Inflicted 2273 | 115 57 274 863 733 231 Guns 1581 | 91 57 274 863 72 224 Cannons . | . . . . . . Explosions 661 | . . . . 661 . Melee . | . . . . . . Ramming 7 | . . . . . 7 Kinetic 1076 | 91 57 274 654 . . Thermal 685 | 24 . . . 661 . Explosive . | . . . . . . Electromagnetic 505 | . . . 209 72 224 Impact . | . . . . . . Slashing . | . . . . . . Piercing . | . . . . . . Highest Corruption 10 | . . 10 . . . Average Corruption 10 | . . 10 . . . Corruption Purged . | . . . . . . Corruption Blocked . | . . . . . . Effects 10 | . . 10 . . . Matter Fused 2 | . . 2 . . . Heat Flow Errors 1 | . . 1 . . . Data Loss (minor) 2 | . . 2 . . . Data Loss (major) 3 | . . 3 . . . Weapon Failures 2 | . . 2 . . . Overload Shots . | . . . . . . Overflow Damage . | . . . . . . Projectiles . | . . . . . . Explosions . | . . . . . . Melee . | . . . . . . Knockbacks . | . . . . . . Impact . | . . . . . . Kinetic . | . . . . . . Secondary . | . . . . . . Self-Inflicted Damage 2 | . . . . . 2 Shots . | . . . . . . Rammed 2 | . . . . . 2 Targets Rammed 4 | . . . . . 4 Kicked 2 | . . . . . 2 Crushed . | . . . . . . Highest Temperature 469 | 42 . 129 469 129 405 Average Temperature 103 | 21 . 34 117 71 241 Received Heat Transfer 828 | . . 99 216 . 513 Effects 4 | . . . 2 . 2 Shutdowns 4 | . . . 2 . 2 Siege Activations . | . . . . . . Robots Corrupted . | . . . . . . Combat Hostiles . | . . . . . . Parts Fried . | . . . . . . Impact Corruptions . | . . . . . . Robots Melted . | . . . . . . Combat Hostiles . | . . . . . . Parts Melted 1 | . . . . 1 . Heat Transferred 700 | 50 . . . 650 . Parts Sabotaged . | . . . . . . Parts Stolen . | . . . . . . Parts Stripped . | . . . . . . Power Chain Reactions 1 | . . . . 1 . Alert | -11 -10 -10 -9 -9 -8 ------- Run | Yrd Mat Min Mat Min Mat Peak Influence 396 | 10 91 114 396 372 184 Initial 144 | . 6 40 44 78 144 Average 151 | 4 44 84 285 246 129 Maximum Alert Level 2 | . . . 2 1 . Low Security (%) 72 | 100 100 100 17 57 100 Level 1 26 | . . . 82 42 . Level 2 . | . . . . . . Level 3 . | . . . . . . Level 4 . | . . . . . . Level 5 . | . . . . . . High Security . | . . . . . . Max Security . | . . . . . . Squads Dispatched 4 | . 1 . 1 . 2 Investigation 1 | . . . . . 1 Extermination . | . . . . . . Reinforcement 3 | . 1 . 1 . 1 Assault . | . . . . . . Garrison . | . . . . . . Intercept . | . . . . . . Searches Triggered . | . . . . . . Construction Impeded 1 | . . . 1 . . Haulers Reinforced . | . . . . . . Active Scanning Responses . | . . . . . . Cargo Convoy Interrupts . | . . . . . . Stealth | -11 -10 -10 -9 -9 -8 --------- Run | Yrd Mat Min Mat Min Mat Distress Signals 1 | . . . 1 . . Communications Jammed . | . . . . . . Distress Signals . | . . . . . . Times Spotted 39 | . 6 5 17 . 11 Peak Tracking Total 7 | . 3 1 6 . 7 Tactical Retreats 1 | . . . . . 1 Traps | -11 -10 -10 -9 -9 -8 ------- Run | Yrd Mat Min Mat Min Mat Traps Triggered 1 | . . . . . 1 Indirectly . | . . . . . . Trap Hack Attempts . | . . . . . . Triggered . | . . . . . . Disarmed . | . . . . . . Reprogrammed . | . . . . . . Reused . | . . . . . . Traps Extracted . | . . . . . . Installed . | . . . . . . Triggered . | . . . . . . Machines | -11 -10 -10 -9 -9 -8 ---------- Run | Yrd Mat Min Mat Min Mat Machines Disabled 8 | . . . . 8 . Max in Single Turn 8 | . . . . 8 . Machines Repaired . | . . . . . . Machines Dismantled . | . . . . . . Machines Sabotaged . | . . . . . . Overloaded Fab Kills . | . . . . . . Hacking | -11 -10 -10 -9 -9 -8 --------- Run | Yrd Mat Min Mat Min Mat Machines Accessed 1 | . 1 . . . . Terminals 1 | . 1 . . . . Fabricators . | . . . . . . Repair Stations . | . . . . . . Recycling Units . | . . . . . . Scanalyzers . | . . . . . . Garrison Access . | . . . . . . Total Hacks 2 | . 2 . . . . Successful 1 | . 1 . . . . Failed 1 | . 1 . . . . Catastrophic . | . . . . . . Database Lockouts . | . . . . . . Manual . | . . . . . . Terminals 2 | . 2 . . . . Fabricators . | . . . . . . Repair Stations . | . . . . . . Recycling Units . | . . . . . . Scanalyzers . | . . . . . . Garrison Access . | . . . . . . Terminal Hacks 1 | . 1 . . . . Locate Traps 1 | . 1 . . . . Fabricator Hacks . | . . . . . . Repair Station Hacks . | . . . . . . Recycling Unit Hacks . | . . . . . . Scanalyzer . | . . . . . . Garrison Access Hacks . | . . . . . . Unauthorized Hacks . | . . . . . . Terminals . | . . . . . . Fabricators . | . . . . . . Repair Stations . | . . . . . . Recycling Units . | . . . . . . Scanalyzers . | . . . . . . Garrison Access . | . . . . . . Data Cores Recovered . | . . . . . . Used . | . . . . . . Hacking Detections 1 | . 1 . . . . Full Trace Events . | . . . . . . Feedback Events . | . . . . . . Feedback Blocked . | . . . . . . Robot Schematics Acquired . | . . . . . . Robots Built . | . . . . . . Authchips . | . . . . . . Time . | . . . . . . Total Robot Build Rating . | . . . . . . Part Schematics Acquired . | . . . . . . Parts Built . | . . . . . . Authchips . | . . . . . . Time . | . . . . . . Total Part Build Rating . | . . . . . . Parts Repaired . | . . . . . . Time . | . . . . . . Parts Recycled . | . . . . . . Recycled Matter . | . . . . . . Retrieved Matter . | . . . . . . Retrieved Components . | . . . . . . Parts Scanalyzed . | . . . . . . Part Schematics Acquired . | . . . . . . Parts Damaged . | . . . . . . Bothacking | -11 -10 -10 -9 -9 -8 ------------ Run | Yrd Mat Min Mat Min Mat Used RIF Installer . | . . . . . . Robots Hacked . | . . . . . . Non-combat . | . . . . . . Combat . | . . . . . . Robot Hacks Applied . | . . . . . . Relay Couplers Released . | . . . . . . Fabnet Peak Effective % . | . . . . . . Robots Rewired . | . . . . . . Allies Hacked . | . . . . . . Hacks Repelled . | . . . . . . Allies | -11 -10 -10 -9 -9 -8 -------- Run | Yrd Mat Min Mat Min Mat Total Allies . | . . . . . . Largest Group . | . . . . . . Highest-Rated Group . | . . . . . . Highest-Rated Ally . | . . . . . . Total Orders . | . . . . . . Ally Attacks . | . . . . . . Total Damage . | . . . . . . Kills . | . . . . . . Allies Corrupted . | . . . . . . Allies Melted . | . . . . . . Intel | -11 -10 -10 -9 -9 -8 ------- Run | Yrd Mat Min Mat Min Mat Robot Analysis Total . | . . . . . . Derelict Logs Recovered 1 | . . 1 . . . Drone Launches . | . . . . . . Drone Recoveries . | . . . . . . Exploration | -11 -10 -10 -9 -9 -8 ------------- Run | Yrd Mat Min Mat Min Mat Turns Passed 1505 | 214 99 290 426 129 347 Spaces Moved 843 | 125 70 160 203 65 220 Core 91 | 9 . 1 . . 81 Treads . | . . . . . . Legs 714 | 116 43 157 203 65 130 Wheels 29 | . 27 2 . . . Hover 9 | . . . . . 9 Flight . | . . . . . . Fastest Speed 50 | 50 80 95 120 190 50 Average Speed 134 | 120 105 120 143 190 135 Slowest Speed 250 | 200 120 200 190 190 250 Overloaded Moves . | . . . . . . Propulsion Burnouts . | . . . . . . Robots Hopped . | . . . . . . Cave-ins Triggered 1 | . . 1 . . . Exploration Rate (%) 19 | 8 20 32 22 18 14 Regions Visited 5 Branch Regions 2 Pre-discovered Areas 2 | . . 1 . 1 . Known Exits Taken . | . . . . . . Unknown Exits Taken 5 | 1 1 1 1 1 . Scrap Searched . | . . . . . . Spaces Dug 5 | 1 . 4 . . . Terrain Destroyed 37 | 1 . 5 . 31 . Melee . | . . . . . . Projectile 6 | 1 . 5 . . . AOE 31 | . . . . 31 . Terrain Rammed . | . . . . . . Walls Destroyed . | . . . . . . Machines Disabled . | . . . . . . Actions | -11 -10 -10 -9 -9 -8 --------- Run | Yrd Mat Min Mat Min Mat Total 1015 | 154 84 195 266 66 250 Wait 2 | . . . . . 2 Move 838 | 124 69 159 202 64 220 Hop . | . . . . . . Pick Up 21 | 5 3 3 6 . 4 Fast Attach 15 | 7 . 2 5 . 1 Attach 19 | 1 1 3 4 . 10 Detach 2 | 1 1 . . . . Swap 7 | . 3 1 3 . . Drop 13 | . 1 1 10 . 1 Fire 94 | 16 6 26 36 2 8 Melee . | . . . . . . Ram 2 | . . . . . 2 Kick 2 | . . . . . 2 Crush . | . . . . . . Escape Stasis . | . . . . . . Rewire . | . . . . . . Trap . | . . . . . . Miscellaneous . | . . . . . . Route ------- -11/Scrapyard -10/Materials -10/Mines -9/Materials -9/Mines (discovered 2 exits: [*Mat x2]) -8/Materials History --------- Turn | Location | Event 20 | -11/Scrapyard | Discovered new exit (range 14) 215 | -11/Scrapyard | Entered Materials 304 | -10/Materials | Discovered new exit (range 14) 314 | -10/Materials | Entered Mines 319 | -10/Mines | Build established: Mutant 396 | -10/Mines | Crushed by falling debris 396 | -10/Mines | System corruption reached 10% 427 | -10/Mines | Lost 3 parts (1p2w) 581 | -10/Mines | Discovered new exit (range 14) 604 | -10/Mines | Entered Materials 604 | -9/Materials | Evolved 2 slots: Weapon x2 808 | -9/Materials | Discovered new exit (range 10) 1030 | -9/Materials | Entered Mines 1059 | -9/Mines | Met a Derelict bent on vengeance 1081 | -9/Mines | Discovered new exit (range 16) 1122 | -9/Mines | Learned location of Storage (-7) 1144 | -9/Mines | Discovered new exit (range 9) 1159 | -9/Mines | Entered Materials 1159 | -8/Materials | Evolved 2 slots: Power x1, Utility x1 1414 | -8/Materials | Core integrity fell below 50% 1459 | -8/Materials | Core integrity fell below 20% 1483 | -8/Materials | Lost 16 parts (2p4n5u5w) 1506 | -8/Materials | Destroyed by H-55 Commando with Gauss Rifle Last Messages --------------- 01443_ Kicked G-47 Trooper. 01446_ Penetrated by Slug. 01448_ Structural Scanner destroyed. 01451_ Kicked H-55 Commando out of the way. 01452_ Penetrated by Slug. 01452_ Titanium Leg destroyed. 01452_ Slammed into H-55 Commando. 01453_ R-06 Scavenger collects Aluminum Leg. 01453_ Slammed into H-55 Commando. 01453_ Destabilizing: Core damaged (-5). 01455_ Penetrated by Slug. 01461_ Slug penetrates Wall. 01467_ K-01 Serf collects debris. 01474_ K-01 Serf cleans the Fusion Modulator. 01474_ Acquired Lgt. Ion Engine. 01481_ K-01 Serf cleans the Fusion Modulator. 01489_ Slug penetrates Wall. 01494_ Lgt. Ion Engine destroyed. 01497_ Acquired Airjet. 01504_ K-01 Serf collects debris. Map ----- +----------------------------------------------------+ | | | | | | | | | | | | | | | | | | | ?????????????????????????????????????????????????? | | ?????????????????????????????????????????????????? | | ?????????????????????????????????????????????????? | | ?????????????????????????????????????????????????? | | ?????????????????????????????????????????????????? | | ?????????????????????????????????????????????????? | | ?????????????????????????????????????????????????? | | ?????????????????????????????????????????????????? | | ???????????????????????#####?????????????????????? | | ???????????????????????# ########??????????????? | | ???????????????????????# # #??????????????? | | ???????????????????????# # #??????????????? | | ???????????????????????# + """ #??????????????? | | ???????????????????????# # """ #??????????????? | | ???????????????????????# l# """ #??????????????? | | ###########????????????# # #??????????????? | | ###########????????????# @ ########??????????????? | | # !!!##????????????#ggh# """ #??????????????? | | # !!!##?????######## # """ #??????????????? | | # !!!######## /gk + """ #??????????????? | | # # #""" # g# #??????????????? | | # # #""" # # #??????????????? | | # """ # #""" # # #??????????????? | | # """ # # # #####/#####???????????? | | #! """ # ?# # # #???????????? | | # # ######## # #???????????? | | ######"######"########## + ! #???????????? | | % # #???????????? | | #""" """ #???????????? | | % " % #"R """ #???????????? | | ####+########+######+### #""" """ #???????????? | | % ##### ## ?# # #???????????? | | """ ?????#!!! #? ?# ###########???????????? | | """ ?????#!! ## ## #?????????????????????? | | """ #???#!! ## ## #?????????????????????? | | #???# ##]! ## #?????????????????????? | | #######???# # ]! ## ###########???????????? | | # ??????#########!! ## ????????? | | ??????????????????###### ????????? | | ???????????????????????# ###########???????????? | | ???????????????????????# #?????????????????????? | +----------------------------------------------------+ Best States ------------- Heat Dissipation 41 Energy Generation 15 Energy Capacity 500 Matter Stores 300 Matter Capacity 300 Sight Range 16 Terrain Scan Range 16 Terrain Scan Density 10 Armor Coverage 150 Evasion (%) 55 Item Schematics ----------------- None Robot Schematics ------------------ None Fabricated ------------ Nothing Alien Tech Used ----------------- None Achievements -------------- None Challenges ------------ None Game ------ Seed MakeshiftCooledDerivative Manual? 0 Play Time 00:22:04 Cumulative 13.7 hours Start 2024.06.02 @ 20:06:24 End 2024.06.02 @ 20:24:57 Sessions 1 Manual Loads 0 Difficulty Rogue Special Mode None Game No. 25 Rogue 25 Adventurer 0 Explorer 0 Win Type - Total 0 Types 0/0/0/0/0/0/0/0/0 Lore% 3 Gallery% 16 Achievement% 13 Wizard Run 0 Options --------- Layout 0 ASCII 0 Keyboard 0 Movement Mouse Keybinds 0 Fullscreen 1 Font 24/Smallcaps Map View 76x50 Zoom Use 19% Tactical HUD 1 Map Filters NONE Filters NONE Steam 1 RUN: ad823931-5acd-4593-82b6-7d4d587bf545